[Event "FIDE World Cup O12-A 2024"]
[Site "Batumi"]
[Date "2024.06.25"]
[Round "3.7"]
[White "Li, Yiheng"]
[Black "Sobirov, Afruzbek"]
[Result "0-1"]
[ECO "C02"]
[WhiteElo "1886"]
[BlackElo "1789"]
[Annotator "NA RC"]
[PlyCount "170"]
[EventDate "2024.06.23"]
[EventType "swiss"]
[EventCountry "GEO"]
[SourceTitle "playchess.com"]
[Source "ChessBase"]
[SourceQuality "1"]
[TimeControl "5400+30"]

1. e4 {[%emt 0:00:02]} e6 {[%emt 0:00:07]} 2. d4 {[%emt 0:00:04]} d5 {[%emt 0:00:06]} 3. e5 {[%emt 0:00:04]} c5 {[%emt 0:00:13]} 4. c3 {[%emt 0:00:04]} Nc6 {[%emt 0:00:05]} 5. Nf3 {[%emt 0:00:04]} Qb6 {[%emt 0:00:17]} 6. a3 {[%emt 0:00:04]} Nh6 {[%emt 0:01:14]} 7. Bd3 {[%emt 0:03:06] is more profitable than 7.b4 at the moment.} cxd4 {[%emt 0:01:31] C02: French: Advance Variation.} 8. O-O {[%emt 0:00:25]} Bd7 {[%emt 0:05:13]} 9. b4 {[%emt 0:00:18]} a6 {[%emt 0:02:22]} 10. c4 {[%emt 0:11:54]} dxc4 {[%emt 0:02:53]} 11. Bxc4 {[%emt 0:00:06]} Nf5 {[%emt 0:05:03]} 12. Bf4 $146 {[%emt 0:06:12]} ({Predecessor:} 12. Bd3 Be7 13. Nbd2 Qc7 14. Qe2 Na7 15. Ne4 h5 16. Bb2 Bb5 17. Bxb5+ Nxb5 18. Rac1 {0-1 Kulaots,K (2525)-Bacrot,E (2659) EU-ch 23rd Vrnjacka Banja 2023 (4)}) 12... h6 {[%emt 0:04:37]} 13. g4 {[%emt 0:01:47]} Nfe7 {[%emt 0:00:15]} 14. Nbd2 {[%emt 0:01:03]} Ng6 {[%emt 0:04:40]} 15. Bg3 {[%emt 0:00:16]} Be7 {[%emt 0:02:10]} 16. Bd3 {[%emt 0:03:48]} O-O-O {[%emt 0:11:25]} 17. Rb1 {[%emt 0:09:11]} Na7 {[%emt 0:02:32]} 18. Nc4 {[%emt 0:04:07]} Qc7 {[%emt 0:00:33]} 19. Nfd2 $11 {[%emt 0:04:16]} ({White should play} 19. Nd6+ $18 Bxd6 20. exd6) 19... Nb5 {[%emt 0:04:38]} 20. Ne4 {[%emt 0:03:50]} Nc3 {[%emt 0:06:43]} 21. Nxc3 {[%emt 0:06:05]} dxc3 {[%emt 0:00:11]} 22. Nd6+ {[%emt 0:03:36]} Bxd6 {[%emt 0:02:03]} 23. exd6 {[%emt 0:00:26]} Qb6 {[%emt 0:00:23]} 24. Qf3 {[%emt 0:08:51]} Rhf8 {[%emt 0:07:46]} 25. Bxg6 {[%emt 0:04:04]} fxg6 {[%emt 0:00:28]} 26. Qxc3+ {[%emt 0:00:06]} Qc6 {[%emt 0:02:54]} 27. Qe3 {[%emt 0:10:33]} Kb8 {[%emt 0:00:53]} 28. f3 {[%emt 0:04:44]} Qb5 {[%emt 0:03:59]} 29. Rbd1 {[%emt 0:06:22]} Bc6 {[%emt 0:08:25]} 30. Bf2 {[%emt 0:05:12]} Rxf3 {[%emt 0:02:32]} 31. Qa7+ {[%emt 0:00:04]} Kc8 {[%emt 0:00:08]} 32. Bb6 {[%emt 0:02:28]} Kd7 {[%emt 0:00:58]} 33. Rxf3 {[%emt 0:01:57]} Bxf3 {[%emt 0:00:23]} 34. Rc1 {[%emt 0:01:45]} Qe2 {[%emt 0:01:10]} 35. Bf2 {[%emt 0:00:26]} Rc8 {[%emt 0:00:47]} 36. Re1 {[%emt 0:00:19]} Qd2 {[%emt 0:01:04]} 37. Qd4 {[%emt 0:00:47]} Qxd4 {[%emt 0:00:37]} 38. Bxd4 {[%emt 0:00:06]} Kxd6 {[%emt 0:01:00]} 39. Bxg7 {[%emt 0:00:06]} Bxg4 {[%emt 0:00:13]} 40. Bxh6 {[%emt 0:00:02]} Rc2 {[%emt 0:00:53]} 41. Rc1 {[%emt 0:00:13]} Rxc1+ {[%emt 0:02:26]} 42. Bxc1 {[%emt 0:00:04]} b5 {[%emt 0:00:03]} 43. Kf2 {[%emt 0:01:08]} Kd5 {[%emt 0:00:08]} 44. Be3 {[%emt 0:01:27]} Kc4 {[%emt 0:00:07]} 45. Bb6 {[%emt 0:00:20]} Kb3 {[%emt 0:00:41]} 46. Kg3 {[%emt 0:00:12]} Bf5 {[%emt 0:00:26]} 47. Kf4 {[%emt 0:00:05]} Kxa3 {[%emt 0:00:08]} 48. Ba5 {[%emt 0:00:03]} Kb3 {[%emt 0:00:08]} 49. h4 {[%emt 0:00:07]} Kc4 {[%emt 0:00:11]} 50. Ke5 {[%emt 0:00:07]} Kd3 {[%emt 0:00:18]} 51. Bc7 {[%emt 0:02:25]} Kc3 {[%emt 0:00:08]} 52. Ba5 {[%emt 0:00:18]} Kc4 {[%emt 0:00:06]} 53. Kf4 {[%emt 0:00:50]} Kd4 {[%emt 0:00:35]} 54. Bb6+ {[%emt 0:00:28]} Kd5 {[%emt 0:00:10]} 55. Bc7 {[%emt 0:00:56]} Bb1 {[%emt 0:00:07]} 56. Ke3 {[%emt 0:00:30]} e5 {[%emt 0:00:07]} 57. Bb6 {[%emt 0:00:31]} Kc4 {[%emt 0:00:15]} 58. Ba5 {[%emt 0:00:06]} Kc3 {[%emt 0:00:04]} 59. Ke2 {[%emt 0:00:12]} e4 {[%emt 0:00:14]} 60. Ke3 {[%emt 0:00:04]} Bd3 {[%emt 0:00:07]} 61. Kf2 {[%emt 0:00:17]} Kd2 {[%emt 0:00:20]} 62. Bb6 {[%emt 0:00:04]} Bb1 {[%emt 0:00:06]} 63. Bc5 {[%emt 0:00:25]} Kc3 {[%emt 0:00:05]} 64. Ke3 {[%emt 0:00:05]} Kc4 {[%emt 0:00:05]} 65. Be7 {[%emt 0:00:38]} Kb3 {[%emt 0:00:03]} 66. Bc5 {[%emt 0:00:13]} Ka4 {[%emt 0:00:05]} 67. Kd4 {[%emt 0:00:22]} a5 {[%emt 0:00:06]} 68. bxa5 {[%emt 0:00:25]} Kxa5 {[%emt 0:00:06]} 69. Kc3 {[%emt 0:00:03]} Ka4 {[%emt 0:00:09]} 70. Kb2 {[%emt 0:00:05]} Bd3 {[%emt 0:00:19]} 71. Kc3 {[%emt 0:00:46]} Bf1 {[%emt 0:00:07]} 72. Kb2 {[%emt 0:00:55]} b4 {[%emt 0:00:22]} 73. Be3 {[%emt 0:00:21]} b3 {[%emt 0:00:04]} 74. Bd2 {[%emt 0:00:07]} Bd3 {[%emt 0:00:07]} 75. Be3 {[%emt 0:00:42]} Kb4 {[%emt 0:00:04]} 76. Bg5 {[%emt 0:00:23]} Bc2 {[%emt 0:00:11]} 77. Bf4 {[%emt 0:01:50]} Kc4 {[%emt 0:00:18]} 78. Kc1 {[%emt 0:00:07]} Kd3 {[%emt 0:27:00]} 79. Bc7 {[%emt 0:00:40]} e3 {[%emt 0:00:00]} 80. Ba5 {[%emt 0:00:03]} e2 {[%emt 0:00:00]} 81. Be1 {[%emt 0:00:03]} Ke3 {[%emt 0:00:00]} 82. Bg3 {[%emt 0:00:21]} Kf3 {[%emt 0:00:00]} 83. Be1 {[%emt 0:00:03]} Kg2 {[%emt 0:00:00]} 84. Kd2 {[%emt 0:00:04]} Kf1 {[%emt 0:00:00]} 85. Bg3 {[%emt 0:00:04]} Bd1 {[%emt 0:00:00]} 0-1

[Event "FIDE World Cup O12-A 2024"]
[Site "Batumi"]
[Date "2024.06.25"]
[Round "3.8"]
[White "Mamikonyan, Artem T"]
[Black "Kozhedub, Ivan"]
[Result "1-0"]
[ECO "B20"]
[WhiteElo "1855"]
[BlackElo "1778"]
[Annotator "NA RC"]
[PlyCount "107"]
[EventDate "2024.06.23"]
[EventType "swiss"]
[EventCountry "GEO"]
[SourceTitle "playchess.com"]
[Source "ChessBase"]
[SourceQuality "1"]
[TimeControl "5400+30"]

1. e4 {[%emt 0:00:01]} c5 {[%emt 0:00:07]} 2. Nf3 {[%emt 0:00:20]} g6 {[%emt 0:00:12]} 3. c4 {[%emt 0:00:32]} Bg7 {[%emt 0:00:09]} 4. Nc3 {[%emt 0:00:50]} Nc6 {[%emt 0:00:12]} 5. d3 {[%emt 0:00:34]} d6 {[%emt 0:01:30]} 6. h3 {[%emt 0:00:57]} e6 {[%emt 0:00:34]} 7. Be3 {[%emt 0:00:15]} Nge7 {[%emt 0:00:05]} 8. d4 {[%emt 0:01:13]} cxd4 {[%emt 0:01:47]} 9. Nxd4 {[%emt 0:00:11]} O-O {[%emt 0:04:36]} 10. Be2 {[%emt 0:00:56]} a6 {[%emt 0:03:49]} 11. O-O {[%emt 0:00:18]} f5 {[%emt 0:02:08]} 12. exf5 {[%emt 0:05:12]} Nxf5 {[%emt 0:02:22]} 13. Nxf5 {[%emt 0:01:01]} gxf5 {[%emt 0:00:10]} 14. f4 {[%emt 0:00:10]} Kh8 {[%emt 0:13:19]} 15. Bf3 {[%emt 0:05:04]} e5 {[%emt 0:05:30]} 16. fxe5 {[%emt 0:00:23]} Nxe5 {[%emt 0:00:44]} 17. Bd5 {[%emt 0:02:02]} Bd7 {[%emt 0:00:11]} 18. Qd2 {[%emt 0:10:58]} Bc6 {[%emt 0:04:26]} 19. Rad1 {[%emt 0:00:47]} Rc8 {[%emt 0:11:12]} 20. b3 {[%emt 0:04:36]} Qe8 {[%emt 0:10:40]} 21. a4 {[%emt 0:09:03]} Qg6 {[%emt 0:06:25]} 22. Ne2 {[%emt 0:07:04]} Rce8 {[%emt 0:03:32]} 23. Nf4 {[%emt 0:01:01]} Qg3 {[%emt 0:00:39]} 24. Bxc6 {[%emt 0:04:57]} Nxc6 {[%emt 0:01:29]} 25. Rf3 {[%emt 0:00:10]} Qh4 {[%emt 0:00:12]} 26. Nd5 {[%emt 0:03:37]} Ne5 {[%emt 0:01:58]} 27. Rf4 {[%emt 0:00:10]} Qh5 {[%emt 0:01:13]} 28. Rdf1 {[%emt 0:08:19]} Nc6 {[%emt 0:08:30]} 29. Qd3 {[%emt 0:05:20]} Re5 {[%emt 0:03:04]} 30. R4f3 {[%emt 0:02:54]} Qg6 {[%emt 0:02:50]} 31. Bd2 {[%emt 0:01:22]} Re4 {[%emt 0:00:53]} 32. Bc3 {[%emt 0:00:46]} Ne5 {[%emt 0:01:33]} 33. Bxe5 {[%emt 0:00:09]} Rxe5 {[%emt 0:00:06]} 34. Kh1 {[%emt 0:01:18]} Qe6 {[%emt 0:02:41]} 35. Ne3 {[%emt 0:00:35]} Rg8 {[%emt 0:06:53]} 36. Nxf5 {[%emt 0:00:54]} Bf8 {[%emt 0:00:34]} 37. Ne3 {[%emt 0:01:02]} Bg7 {[%emt 0:01:27]} 38. Nf5 {[%emt 0:01:25]} Bf8 {[%emt 0:00:10]} 39. Nd4 {[%emt 0:00:09]} Qh6 {[%emt 0:00:45]} 40. Rg3 {[%emt 0:00:31]} Reg5 {[%emt 0:01:11]} 41. Rxg5 {[%emt 0:00:44]} Qxg5 {[%emt 0:00:06]} 42. Qf3 {[%emt 0:00:08]} Qe5 {[%emt 0:00:54]} 43. Nf5 {[%emt 0:00:28]} b5 {[%emt 0:00:34]} 44. cxb5 {[%emt 0:00:09]} axb5 {[%emt 0:00:09]} 45. a5 {[%emt 0:00:05]} d5 {[%emt 0:00:09]} 46. Ne3 {[%emt 0:00:23]} Bd6 {[%emt 0:01:01]} 47. Qf6+ {[%emt 0:00:52]} Qxf6 {[%emt 0:00:06]} 48. Rxf6 {[%emt 0:00:03]} Bb4 {[%emt 0:01:04]} 49. Nxd5 {[%emt 0:01:28]} Bxa5 {[%emt 0:00:23]} 50. b4 {[%emt 0:00:04]} Bd8 {[%emt 0:00:05]} 51. Rf7 {[%emt 0:02:12]} Bh4 {[%emt 0:01:41]} 52. Rb7 {[%emt 0:00:08]} Bg3 {[%emt 0:00:00]} 53. Nf6 {[%emt 0:00:17]} Rg7 {[%emt 0:00:00]} 54. Rxg7 {[%emt 0:00:04]} 1-0

[Event "FIDE World Cup O12-A 2024"]
[Site "Batumi"]
[Date "2024.06.25"]
[Round "3.9"]
[White "Lee, Daniel Joshua"]
[Black "Nanayakkara, Sanuk"]
[Result "0-1"]
[ECO "B36"]
[WhiteElo "1717"]
[BlackElo "1714"]
[Annotator "NA RC"]
[PlyCount "100"]
[EventDate "2024.06.23"]
[EventType "swiss"]
[EventCountry "GEO"]
[SourceTitle "playchess.com"]
[Source "ChessBase"]
[SourceQuality "1"]
[TimeControl "5400+30"]

1. e4 {[%emt 0:00:03]} c5 {[%emt 0:00:06]} 2. Nf3 {[%emt 0:00:05]} Nc6 {[%emt 0:00:06]} 3. d4 {[%emt 0:00:05]} cxd4 {[%emt 0:00:01]} 4. Nxd4 {[%emt 0:00:07]} g6 {[%emt 0:00:04]} 5. c4 {[%emt 0:00:14]} Nf6 {[%emt 0:00:15]} 6. Nc3 {[%emt 0:00:06]} Nxd4 {[%emt 0:00:09]} 7. Qxd4 {[%emt 0:00:07]} d6 {[%emt 0:00:03]} 8. Be2 {[%emt 0:00:16]} Bg7 {[%emt 0:00:11]} 9. Be3 {[%emt 0:00:10]} O-O {[%emt 0:00:07]} 10. Qd3 {[%emt 0:00:03]} Be6 {[%emt 0:01:51]} 11. O-O {[%emt 0:00:06]} Qa5 {[%emt 0:00:22]} 12. Rac1 {[%emt 0:01:31]} Rfc8 {[%emt 0:00:34]} 13. b3 {[%emt 0:00:31]} Nd7 {[%emt 0:04:29]} 14. f4 {[%emt 0:08:35]} Nc5 {[%emt 0:28:17]} 15. Bxc5 {[%emt 0:02:26]} Qxc5+ {[%emt 0:09:40]} 16. Kh1 {[%emt 0:03:04]} f5 {[%emt 0:05:24]} 17. Bf3 {[%emt 0:07:32]} Rab8 {[%emt 0:05:34]} 18. exf5 {[%emt 0:15:23]} Bxf5 {[%emt 0:04:05]} 19. Qd5+ {[%emt 0:01:17]} Kh8 {[%emt 0:02:51]} 20. g4 {[%emt 0:03:22]} Bd7 {[%emt 0:06:11]} 21. Rfe1 {[%emt 0:12:55]} Bc6 {[%emt 0:07:12]} 22. Qd3 {[%emt 0:05:36]} Qd4 {[%emt 0:00:49]} 23. Re3 {[%emt 0:06:02]} Qxf4 {[%emt 0:02:33]} 24. Bxc6 {[%emt 0:01:05]} bxc6 {[%emt 0:01:53]} 25. Rf1 {[%emt 0:04:27]} Qxg4 {[%emt 0:02:49]} 26. Rxe7 {[%emt 0:03:21]} Rf8 {[%emt 0:00:17]} 27. Rxf8+ {[%emt 0:03:30]} Rxf8 {[%emt 0:00:11]} 28. Ne4 {[%emt 0:06:56]} Be5 {[%emt 0:06:26]} 29. Nxd6 {[%emt 0:04:30]} Qf4 {[%emt 0:00:39]} 30. Rxe5 {[%emt 0:10:07]} Qxe5 {[%emt 0:00:09]} 31. Ne4 {[%emt 0:00:59]} Re8 {[%emt 0:00:59]} 32. Qc3 {[%emt 0:00:13]} Qxc3 {[%emt 0:00:18]} 33. Nxc3 {[%emt 0:00:03]} Re1+ {[%emt 0:00:08]} 34. Kg2 {[%emt 0:00:05]} Rc1 {[%emt 0:00:04]} 35. Ne2 {[%emt 0:01:11]} Rc2 {[%emt 0:00:05]} 36. Kf3 {[%emt 0:00:07]} Rxa2 {[%emt 0:00:05]} 37. Nd4 {[%emt 0:00:04]} Rb2 {[%emt 0:01:21]} 38. Nxc6 {[%emt 0:00:34]} Rxb3+ {[%emt 0:00:04]} 39. Ke4 {[%emt 0:00:13]} Ra3 {[%emt 0:01:10]} 40. c5 {[%emt 0:00:45]} Kg7 {[%emt 0:00:25]} 41. Nd4 {[%emt 0:00:20]} Kf6 {[%emt 0:00:36]} 42. Kd5 {[%emt 0:00:38]} Rd3 {[%emt 0:00:48]} 43. Kc4 {[%emt 0:01:29]} Rxd4+ {[%emt 0:00:43]} 44. Kxd4 {[%emt 0:00:04]} Ke6 {[%emt 0:00:03]} 45. Kc4 {[%emt 0:00:23]} Kd7 {[%emt 0:00:12]} 46. Kb5 {[%emt 0:00:05]} g5 {[%emt 0:00:15]} 47. Ka6 {[%emt 0:00:07]} Kc6 {[%emt 0:00:03]} 48. Kxa7 {[%emt 0:00:06]} g4 {[%emt 0:00:06]} 49. Ka6 {[%emt 0:00:50]} h5 {[%emt 0:00:13]} 50. Ka5 {[%emt 0:00:05]} h4 {[%emt 0:00:03]} 0-1

[Event "FIDE World Cup O12-A 2024"]
[Site "Batumi"]
[Date "2024.06.25"]
[Round "3.10"]
[White "Yang, Maxwell"]
[Black "Diasamidze, Rati"]
[Result "1-0"]
[ECO "E48"]
[WhiteElo "1979"]
[BlackElo "1646"]
[Annotator "NA RC"]
[PlyCount "153"]
[EventDate "2024.06.23"]
[EventType "swiss"]
[EventCountry "GEO"]
[SourceTitle "playchess.com"]
[Source "ChessBase"]
[SourceQuality "1"]
[TimeControl "5400+30"]

1. d4 {[%emt 0:00:02]} Nf6 {[%emt 0:00:08]} 2. c4 {[%emt 0:00:13]} e6 {[%emt 0:00:10]} 3. Nc3 {[%emt 0:00:06]} Bb4 {[%emt 0:00:15]} 4. e3 {[%emt 0:00:06]} O-O {[%emt 0:00:29]} 5. Bd3 {[%emt 0:00:03]} d5 {[%emt 0:00:11]} 6. cxd5 {[%emt 0:00:05]} exd5 {[%emt 0:00:04]} 7. a3 {[%emt 0:00:06]} Bd6 {[%emt 0:00:13]} 8. Qc2 {[%emt 0:00:09]} c6 {[%emt 0:00:22]} 9. Nge2 {[%emt 0:00:19]} Re8 {[%emt 0:01:01]} 10. Ng3 {[%emt 0:02:29]} b6 {[%emt 0:06:05]} 11. O-O {[%emt 0:04:08]} Ba6 {[%emt 0:03:46]} 12. Bxa6 {[%emt 0:05:20]} Nxa6 {[%emt 0:00:05]} 13. Qd3 {[%emt 0:00:07]} Nc7 {[%emt 0:02:40]} 14. Nf5 {[%emt 0:01:36]} Bf8 {[%emt 0:04:27]} 15. Bd2 $15 {[%emt 0:06:08]} g6 {[%emt 0:09:09]} 16. Ng3 {[%emt 0:02:09]} Bd6 {[%emt 0:07:46]} 17. Rae1 {[%emt 0:04:45]} Ne6 {[%emt 0:09:02]} 18. Nce2 {[%emt 0:35:01]} c5 {[%emt 0:20:04]} 19. f4 {[%emt 0:26:05]} c4 {[%emt 0:20:03]} 20. Qc2 {[%emt 0:00:33]} a5 {[%emt 0:04:14]} 21. f5 {[%emt 0:06:48]} Ng5 {[%emt 0:01:56]} 22. fxg6 {[%emt 0:01:55]} hxg6 {[%emt 0:00:30]} 23. Nf4 {[%emt 0:00:13]} Kg7 {[%emt 0:03:13]} 24. Nge2 {[%emt 0:02:49]} Nge4 {[%emt 0:02:05]} 25. Nc3 {[%emt 0:00:19]} Bc7 {[%emt 0:01:16]} 26. g3 {[%emt 0:00:50]} Nxc3 {[%emt 0:01:55]} 27. Bxc3 {[%emt 0:00:46]} Ne4 {[%emt 0:00:41]} 28. Qg2 {[%emt 0:00:29]} Qd7 {[%emt 0:01:10]} 29. Qf3 {[%emt 0:00:44]} Rad8 {[%emt 0:00:40]} 30. Re2 {[%emt 0:00:27]} Ng5 {[%emt 0:00:50]} 31. Qg2 {[%emt 0:00:30]} Bxf4 {[%emt 0:00:28]} 32. gxf4 {[%emt 0:00:20]} Ne4 {[%emt 0:00:18]} 33. Be1 {[%emt 0:00:13]} Qf5 {[%emt 0:00:43]} 34. Qf3 {[%emt 0:00:56]} Rh8 {[%emt 0:00:34]} 35. h4 {[%emt 0:00:09]} f6 {[%emt 0:00:29]} 36. Rg2 {[%emt 0:00:06]} Kf7 {[%emt 0:00:23]} 37. Qg4 {[%emt 0:00:14]} Qxg4 {[%emt 0:00:37]} 38. Rxg4 {[%emt 0:00:06]} f5 {[%emt 0:00:09]} 39. Rg2 {[%emt 0:00:04]} Nf6 {[%emt 0:00:11]} 40. Rf3 {[%emt 0:00:14]} Rde8 {[%emt 0:00:22]} 41. Kf1 {[%emt 0:01:00]} Ng4 {[%emt 0:00:16]} 42. Ke2 {[%emt 0:00:07]} Re4 {[%emt 0:00:24]} 43. Kd2 {[%emt 0:01:48]} Rhe8 {[%emt 0:00:33]} 44. Bf2 {[%emt 0:00:33]} Ke6 {[%emt 0:00:33]} 45. Rh3 {[%emt 0:00:24]} Rh8 {[%emt 0:00:40]} 46. Bg1 {[%emt 0:01:18]} Kd6 {[%emt 0:00:35]} 47. Kc3 {[%emt 0:00:23]} Rhe8 {[%emt 0:01:11]} 48. Kd2 {[%emt 0:00:27]} Rh8 {[%emt 0:00:28]} 49. Re2 {[%emt 0:00:35]} b5 {[%emt 0:00:30]} 50. Bf2 {[%emt 0:00:32]} b4 {[%emt 0:00:35]} 51. axb4 {[%emt 0:00:24]} axb4 {[%emt 0:00:07]} 52. Kc2 {[%emt 0:00:24]} Rhe8 {[%emt 0:00:29]} 53. Kd2 {[%emt 0:00:48]} c3+ {[%emt 0:01:03]} 54. bxc3 {[%emt 0:00:08]} bxc3+ {[%emt 0:00:09]} 55. Kd3 {[%emt 0:00:42]} Rc8 {[%emt 0:00:47]} 56. Bg1 {[%emt 0:00:10]} Ra8 {[%emt 0:00:27]} 57. Kxc3 {[%emt 0:00:19]} Ra3+ {[%emt 0:00:35]} 58. Kb2 {[%emt 0:00:47]} Rd3 {[%emt 0:00:19]} 59. Kc2 {[%emt 0:00:38]} Rdxd4 {[%emt 0:00:12]} 60. exd4 {[%emt 0:00:28]} Rxe2+ {[%emt 0:00:05]} 61. Kd3 {[%emt 0:00:15]} Re1 {[%emt 0:00:39]} 62. Be3 {[%emt 0:00:16]} Ra1 {[%emt 0:00:23]} 63. Ke2 {[%emt 0:00:35]} Ra2+ {[%emt 0:00:28]} 64. Bd2 {[%emt 0:00:37]} Kc6 {[%emt 0:00:37]} 65. h5 {[%emt 0:00:40]} gxh5 {[%emt 0:00:12]} 66. Rxh5 {[%emt 0:00:09]} Nf6 {[%emt 0:00:21]} 67. Rh6 {[%emt 0:00:18]} Kb5 {[%emt 0:00:09]} 68. Rxf6 {[%emt 0:00:16]} Kc4 {[%emt 0:00:09]} 69. Rxf5 {[%emt 0:00:19]} Kxd4 {[%emt 0:00:07]} 70. Re5 {[%emt 0:00:35]} Rb2 {[%emt 0:00:47]} 71. Re3 {[%emt 0:00:10]} Rb8 {[%emt 0:01:27]} 72. Bc3+ {[%emt 0:00:27]} Kc4 {[%emt 0:00:14]} 73. Be5 {[%emt 0:00:07]} Re8 {[%emt 0:00:26]} 74. Rc3+ {[%emt 0:00:17]} Kb4 {[%emt 0:00:20]} 75. Kd3 {[%emt 0:00:19]} Re6 {[%emt 0:01:07]} 76. Kd4 {[%emt 0:00:14]} Rh6 {[%emt 0:00:33]} 77. Kxd5 {[%emt 0:00:08]} 1-0

[Event "FIDE World Cup O12-A 2024"]
[Site "Batumi"]
[Date "2024.06.25"]
[Round "3.11"]
[White "Berdashkevich, Makar"]
[Black "Tavberidze, Alexandre"]
[Result "1/2-1/2"]
[ECO "B15"]
[WhiteElo "1650"]
[BlackElo "1529"]
[Annotator "NA RC"]
[PlyCount "110"]
[EventDate "2024.06.23"]
[EventType "swiss"]
[EventCountry "GEO"]
[SourceTitle "playchess.com"]
[Source "ChessBase"]
[SourceQuality "1"]
[TimeControl "5400+30"]

1. e4 {[%emt 0:01:22]} c6 {[%emt 0:00:45]} 2. d4 {[%emt 0:00:23]} d5 {[%emt 0:00:05]} 3. Nc3 {[%emt 0:00:21]} dxe4 {[%emt 0:00:12]} 4. Nxe4 {[%emt 0:00:07]} Nf6 {[%emt 0:00:18]} 5. Nxf6+ {[%emt 0:00:48]} exf6 {[%emt 0:00:07]} 6. c3 {[%emt 0:00:24]} Bd6 {[%emt 0:00:18]} 7. Bd3 {[%emt 0:00:45]} O-O {[%emt 0:00:52]} 8. Ne2 {[%emt 0:00:52]} Bg4 {[%emt 0:02:47]} 9. O-O {[%emt 0:02:24]} Nd7 {[%emt 0:00:55]} 10. Qc2 {[%emt 0:03:13]} h6 {[%emt 0:04:39]} 11. h3 {[%emt 0:02:21]} Be6 {[%emt 0:02:27]} 12. Nf4 {[%emt 0:01:25]} Bxf4 {[%emt 0:01:46]} 13. Bxf4 {[%emt 0:00:11]} Nb6 {[%emt 0:02:07]} 14. b3 {[%emt 0:06:33]} Nd5 {[%emt 0:01:58]} 15. Bd2 {[%emt 0:02:02]} Qd7 {[%emt 0:03:43]} 16. c4 {[%emt 0:09:41]} Ne7 {[%emt 0:01:55]} 17. Bb4 {[%emt 0:04:39]} Rfe8 {[%emt 0:02:11]} 18. Rad1 {[%emt 0:03:12]} Bf5 {[%emt 0:03:50]} 19. Bxf5 {[%emt 0:59:17]} Qxf5 {[%emt 0:00:35]} 20. Qxf5 {[%emt 0:00:00]} Nxf5 {[%emt 0:00:20]} 21. d5 {[%emt 0:00:00]} cxd5 {[%emt 0:01:50]} 22. Rxd5 {[%emt 0:00:00]} Re5 {[%emt 0:02:09]} 23. Rfd1 {[%emt 0:00:00]} Rae8 {[%emt 0:03:01]} 24. f4 {[%emt 0:00:00]} Rxd5 {[%emt 0:00:51]} 25. Rxd5 {[%emt 0:00:00]} Ng3 {[%emt 0:01:14]} 26. Kf2 {[%emt 0:00:00]} Ne4+ {[%emt 0:00:38]} 27. Kf3 {[%emt 0:00:00]} b6 {[%emt 0:01:21]} 28. g4 {[%emt 0:00:00]} g5 {[%emt 0:04:34]} 29. Rd4 {[%emt 0:00:00]} f5 {[%emt 0:02:49]} 30. gxf5 {[%emt 0:00:00]} Nf6 {[%emt 0:00:16]} 31. fxg5 {[%emt 0:00:00]} hxg5 {[%emt 0:00:11]} 32. Bc3 {[%emt 0:00:00]} Nh5 {[%emt 0:01:42]} 33. h4 {[%emt 0:02:00]} f6 {[%emt 0:01:04]} 34. hxg5 {[%emt 0:00:09]} fxg5 {[%emt 0:00:05]} 35. Rg4 {[%emt 0:00:20]} Kf7 {[%emt 0:00:38]} 36. Rxg5 {[%emt 0:01:17]} Nf6 {[%emt 0:00:21]} 37. Rg6 {[%emt 0:00:44]} Ne4 {[%emt 0:00:50]} 38. Be1 {[%emt 0:03:29]} Ng5+ {[%emt 0:01:54]} 39. Kf2 {[%emt 0:01:16]} Ne4+ {[%emt 0:00:42]} 40. Kg2 {[%emt 0:00:30]} Re5 {[%emt 0:00:38]} 41. Kf3 {[%emt 0:00:42]} Nc5 {[%emt 0:00:38]} 42. Rh6 {[%emt 0:00:29]} Rxe1 {[%emt 0:00:14]} 43. Rh7+ {[%emt 0:00:06]} Kf6 {[%emt 0:00:08]} 44. Rxa7 {[%emt 0:00:06]} Kxf5 {[%emt 0:00:09]} 45. b4 {[%emt 0:00:40]} Nd3 {[%emt 0:00:26]} 46. a3 {[%emt 0:00:27]} Ne5+ {[%emt 0:00:11]} 47. Kf2 {[%emt 0:00:15]} Re4 {[%emt 0:00:32]} 48. c5 {[%emt 0:00:35]} bxc5 {[%emt 0:00:30]} 49. bxc5 {[%emt 0:01:15]} Nd3+ {[%emt 0:00:10]} 50. Kf3 {[%emt 0:00:04]} Nxc5 {[%emt 0:00:57]} 51. Rh7 {[%emt 0:00:58]} Kg6 {[%emt 0:00:56]} 52. Rc7 {[%emt 0:00:10]} Rc4 {[%emt 0:00:25]} 53. a4 {[%emt 0:00:27]} Rc3+ {[%emt 0:00:40]} 54. Ke2 {[%emt 0:00:32]} Nxa4 {[%emt 0:01:39]} 55. Rxc3 {[%emt 0:00:10]} Nxc3+ {[%emt 0:00:05]} 1/2-1/2